fUST/lending_fUST_20240227
["ID","MTS","AMOUNT","RATE_DAILY","PERIOD"]
[315430098,1709029843175,-235.52195681,0.00019726,2]
[315430099,1709029843184,-6492.69,0.00019726,2]
[315430100,1709029843193,-2133.72,0.00019726,2]
[315430101,1709029843202,-500.0,0.00019726,2]
[315430102,1709029843212,-500.0,0.00019726,2]
[315430103,1709029843221,-500.0,0.00019726,2]
[315430104,1709029843231,-4510.36,0.00019726,2]
[315430105,1709029843241,-1414.54,0.00019726,2]
[315430106,1709029843251,-500.0,0.00019726,2]
[315430107,1709029843261,-3051.96,0.00019726,2]
[315430108,1709029843270,-533.40617444,0.00019726,2]
[315430109,1709029843279,-369.62759187,0.00019726,2]
[315430110,1709029843288,-500.0,0.00019726,2]
[315430111,1709029843297,-17947.83,0.00019726,2]
[315430112,1709029843306,-1302.63,0.00019726,2]
[315430113,1709029843315,-3826.56,0.00019726,2]
[315430114,1709029843324,-868.04,0.00019726,2]
[315430115,1709029843333,-500.0,0.00019726,2]
[315430116,1709029843342,-3097.32,0.00019726,2]
[315430117,1709029843351,-2279.01,0.00019726,2]
[315430118,1709029843360,-501.12415207,0.00019726,2]
[315430119,1709029843369,-728.61,0.00019726,2]
[315430120,1709029843378,-500.0,0.00019726,2]
[315430121,1709029843387,-500.0,0.00019726,2]
[315430122,1709029843397,-1677.26,0.00019726,2]
[315430123,1709029843406,-1097.39,0.00019726,2]
[315430124,1709029843415,-696.69,0.00019726,2]
[315430125,1709029843426,-500.0,0.00019726,2]
[315430126,1709029843435,-959.01542021,0.00019812,2]
[315430127,1709029843444,-8231.22000589,0.0001991,2]
[315430128,1709029843454,-821.94,0.00019999,2]
[315430129,1709029843463,-821.94,0.00019999,2]
[315430130,1709029843472,-821.94,0.00019999,2]
[315430131,1709029843482,-821.94,0.00019999,2]
[315430132,1709029843491,-821.94,0.00019999,2]
[315430133,1709029843500,-821.95258347,0.00019999,2]
[315430134,1709029843509,-500.0,0.0002,2]
[315430135,1709029843518,-557.52,0.0002,2]
[315430136,1709029843527,-500.0,0.0002,2]
[315430137,1709029843536,-525.27752141,0.0002,2]
[315430138,1709029843545,-500.0,0.0002,2]
[315430139,1709029843554,-606.07,0.0002,2]
[315430140,1709029843563,-500.0,0.0002,2]
[315430141,1709029843573,-583.52,0.0002,2]
[315430142,1709029843582,-231.23191091,0.0002,2]
[315430143,1709029843592,-543.7600871,0.0002,2]
[315430144,1709029843602,-500.0,0.0002,2]
[315430145,1709029843612,-500.0,0.0002,2]
[315430146,1709029843622,-1268.67,0.0002,2]
[315430147,1709029843632,-775.4,0.0002,2]
[315430148,1709029843642,-749.07,0.0002,2]
[315430149,1709029843652,-282.98479173,0.0002,2]
[315430150,1709029843661,-500.0,0.0002,2]
[315430151,1709029843672,-500.0,0.0002,2]
[315430152,1709029843681,-492.17596096,0.0002,2]
[315430153,1709029843690,-500.0,0.0002,2]
[315430154,1709029843699,-500.0,0.0002,2]
[315430155,1709029843709,-500.0,0.0002,2]
[315430156,1709029843718,-466.40052004,0.0002,2]
[315430157,1709029843727,-1536.97,0.0002,2]
[315430158,1709029843817,-552.56513057,0.0002,2]
[315430159,1709029843827,-1519.07,0.0002,2]
[315430160,1709029843837,-500.0,0.0002,2]
[315430161,1709029843846,-500.0,0.0002,2]
[315430162,1709029843855,-500.0,0.0002,2]
[315430163,1709029843865,-382.1661985,0.0002,2]
[315430164,1709029843874,-500.0,0.0002,2]
[315430165,1709029843884,-500.0,0.0002,2]
[315430166,1709029843895,-907.1,0.0002,2]
[315430167,1709029843908,-685.27,0.0002,2]
[315430168,1709029843919,-500.0,0.0002,2]
[315430169,1709029843929,-500.0,0.0002,2]
[315430170,1709029843939,-500.0,0.0002,2]
[315430171,1709029843949,-169.21456967,0.0002,2]
[315430172,1709029843959,-500.0,0.0002,2]
[315430173,1709029843969,-744.2,0.0002,2]
[315430174,1709029843979,-500.0,0.0002,2]
[315430175,1709029843990,-2092.87,0.0002,2]
[315430176,1709029844000,-500.0,0.0002,2]
[315430177,1709029844010,-1360.77,0.0002,2]
[315430178,1709029844020,-9597.02,0.0002,2]
[315430179,1709029844031,-501.80817925,0.0002,2]
[315430180,1709029844041,-3776.74,0.0002,2]
[315430181,1709029844051,-500.0,0.0002,2]
[315430182,1709029844061,-500.0,0.0002,2]
[315430183,1709029844070,-1843.95,0.0002,2]
[315430184,1709029844079,-598.39,0.0002,2]
[315430185,1709029844090,-1946.01,0.0002,2]
[315430186,1709029844101,-500.0,0.0002,2]
[315430187,1709029844110,-2557.53,0.0002,2]
[315430188,1709029844119,-501.22134572,0.0002,2]
[315430189,1709029844128,-500.0,0.0002,2]
[315430190,1709029844137,-17411.95,0.0002,2]
[315430191,1709029844147,-158.76788744,0.0002,2]
[315430192,1709029844156,-500.0,0.0002,2]
[315430193,1709029844165,-495.0,0.0002,2]
[315430194,1709029844175,-1202.2,0.0002,2]
[315430195,1709029844184,-1690.48,0.0002,2]
[315430196,1709029844193,-500.0,0.0002,2]
[315430197,1709029844203,-500.0,0.0002,2]
[315430198,1709029844212,-500.0,0.0002,2]
[315430199,1709029844222,-587.72307026,0.0002,2]
[315430200,1709029844231,-1304.09,0.0002,2]
[315430201,1709029844240,-593.26,0.0002,2]
[315430202,1709029844250,-6492.69,0.0002,2]
[315430203,1709029844259,-2133.72,0.0002,2]
[315430204,1709029844268,-500.0,0.0002,2]
[315430205,1709029844278,-500.0,0.0002,2]
[315430206,1709029844287,-500.0,0.0002,2]
[315430207,1709029844296,-4510.36,0.0002,2]
[315430208,1709029844305,-1414.54,0.0002,2]
[315430209,1709029844315,-500.0,0.0002,2]
[315430210,1709029844325,-3051.96,0.0002,2]
[315430211,1709029844335,-500.0,0.0002,2]
[315430212,1709029844344,-17947.83,0.0002,2]
[315430213,1709029844353,-1302.63,0.0002,2]
[315430214,1709029844362,-3826.56,0.0002,2]
[315430215,1709029844371,-868.04,0.0002,2]
[315430216,1709029844380,-500.0,0.0002,2]
[315430217,1709029844390,-3097.32,0.0002,2]
[315430218,1709029844399,-2279.01,0.0002,2]
[315430219,1709029844409,-728.61,0.0002,2]
[315430220,1709029844418,-336.69898198,0.0002,2]
[315430221,1709029844431,-500.0,0.0002,2]
[315430222,1709029844440,-1677.26,0.0002,2]
[315430223,1709029844450,-1097.39,0.0002,2]
[315430224,1709029844459,-696.69,0.0002,2]
[315430225,1709029844469,-500.0,0.0002,2]
[315430226,1709029844478,-50000.0,0.00020011,5]
[315430227,1709029844489,-50000.0,0.00020012,5]
[315430228,1709029844499,-50000.0,0.00020015,5]
[315430229,1709029844509,-306.0,0.00020055,2]
[315430230,1709029844521,-153.0,0.00020055,2]
[315430231,1709029844530,-166.666666,0.00020076,2]
[315430232,1709029844540,-959.01542021,0.00020125,2]
[315430233,1709029844549,-500.0,0.00020127,2]
[315430234,1709029844558,-153.0,0.00020192,2]
[315430235,1709029844567,-500.0,0.00020242,2]
[315430236,1709029844576,-500.0,0.0002027,2]
[315430237,1709029844585,-500.0,0.0002027,2]
[315430238,1709029844594,-483.35573901,0.0002027,2]
[315430239,1709029844603,-500.0,0.0002027,2]
[315430240,1709029844613,-500.0,0.0002027,2]
[315430241,1709029844622,-500.0,0.0002027,2]
[315430242,1709029844633,-329.80280131,0.0002027,2]
[315430243,1709029844643,-500.0,0.0002027,2]
[315430244,1709029844652,-500.0,0.0002027,2]
[315430245,1709029844662,-500.0,0.0002027,2]
[315430246,1709029844672,-500.0,0.0002027,2]
[315430247,1709029844682,-500.0,0.0002027,2]
[315430248,1709029844692,-500.0,0.0002027,2]
[315430249,1709029844701,-500.0,0.0002027,2]
[315430250,1709029844711,-500.0,0.0002027,2]
[315430251,1709029844720,-500.0,0.0002027,2]
[315430252,1709029844730,-500.0,0.0002027,2]
[315430253,1709029844739,-500.0,0.0002027,2]
[315430254,1709029844749,-500.0,0.0002027,2]
[315430255,1709029844758,-233.06091591,0.0002027,2]
[315430256,1709029844767,-326.32993225,0.0002027,2]
[315430257,1709029844777,-476.85954565,0.0002027,2]
[315430258,1709029844786,-500.0,0.0002027,2]
[315430259,1709029844796,-500.0,0.0002027,2]
[315430260,1709029844805,-500.0,0.0002027,2]
[315430261,1709029844814,-500.0,0.0002027,2]
[315430262,1709029844823,-500.0,0.0002027,2]
[315430263,1709029844833,-500.0,0.0002027,2]
[315430264,1709029844842,-500.0,0.0002027,2]
[315430265,1709029844853,-500.0,0.0002027,2]
[315430266,1709029844864,-500.0,0.0002027,2]
[315430267,1709029844874,-500.0,0.0002027,2]
[315430268,1709029844885,-500.0,0.0002027,2]
[315430269,1709029844894,-560.17217773,0.0002027,2]
[315430270,1709029844906,-500.0,0.0002027,2]
[315430271,1709029844916,-500.0,0.0002027,2]
[315430272,1709029844930,-500.0,0.0002027,2]
[315430273,1709029844942,-500.0,0.0002027,2]
[315430274,1709029844952,-500.0,0.00020273,2]
[315430275,1709029844961,-557.52,0.00020273,2]
[315430276,1709029844970,-500.0,0.00020273,2]
[315430277,1709029844980,-606.07,0.00020273,2]
[315430278,1709029844989,-224.5571896,0.00020273,2]
[315430279,1709029844998,-583.52,0.00020273,2]
[315430280,1709029845007,-500.0,0.00020273,2]
[315430282,1709029845016,-500.0,0.00020273,2]
[315430284,1709029845026,-1268.67,0.00020273,2]
[315430286,1709029845034,-775.4,0.00020273,2]
[315430288,1709029845043,-749.07,0.00020273,2]
[315430289,1709029845052,-500.0,0.00020273,2]
[315430290,1709029845061,-500.0,0.00020273,2]
[315430291,1709029845070,-500.0,0.00020273,2]
[315430292,1709029845079,-500.0,0.00020273,2]
[315430293,1709029845089,-391.84467758,0.00020273,2]
[315430294,1709029845098,-1536.97,0.00020273,2]
[315430295,1709029845107,-1519.07,0.00020273,2]
[315430296,1709029845115,-500.0,0.00020273,2]
[315430297,1709029845125,-500.0,0.00020273,2]
[315430298,1709029845134,-500.0,0.00020273,2]
[315430299,1709029845143,-500.0,0.00020273,2]
[315430300,1709029845153,-907.1,0.00020273,2]
[315430301,1709029845162,-685.27,0.00020273,2]
[315430302,1709029845172,-500.0,0.00020273,2]
[315430303,1709029845181,-500.0,0.00020273,2]
[315430304,1709029845190,-500.0,0.00020273,2]
[315430305,1709029845199,-500.0,0.00020273,2]
[315430306,1709029845209,-398.21029264,0.00020273,2]
[315430307,1709029845218,-744.2,0.00020273,2]
[315430308,1709029845227,-2092.87,0.00020273,2]
[315430309,1709029845236,-174.56092939,0.00020273,2]
[315430311,1709029845247,-1360.77,0.00020273,2]
[315430314,1709029845256,-9597.02,0.00020273,2]
[315430316,1709029845265,-3776.74,0.00020273,2]
[315430318,1709029845275,-581.16057071,0.00020273,2]
[315430320,1709029845284,-500.0,0.00020273,2]
[315430321,1709029845293,-1843.95,0.00020273,2]
[315430323,1709029845302,-598.39,0.00020273,2]
[315430325,1709029845311,-1946.01,0.00020273,2]
[315430326,1709029845320,-500.0,0.00020273,2]
[315430327,1709029845329,-2557.53,0.00020273,2]
[315430328,1709029845338,-500.0,0.00020273,2]
[315430329,1709029845347,-17411.95,0.00020273,2]
[315430330,1709029845356,-500.0,0.00020273,2]
[315430331,1709029845365,-1202.2,0.00020273,2]
[315430332,1709029845374,-1690.48,0.00020273,2]
[315430333,1709029845383,-500.0,0.00020273,2]
[315430334,1709029845392,-500.0,0.00020273,2]
[315430335,1709029845401,-500.0,0.00020273,2]
[315430336,1709029845410,-1304.09,0.00020273,2]
[315430337,1709029845419,-593.26,0.00020273,2]
[315430338,1709029845430,-6492.69,0.00020273,2]
[315430339,1709029845439,-2133.72,0.00020273,2]
[315430340,1709029845449,-500.0,0.00020273,2]
[315430341,1709029845458,-500.0,0.00020273,2]
[315430342,1709029845467,-500.0,0.00020273,2]
[315430343,1709029845476,-4510.36,0.00020273,2]
[315430344,1709029845485,-1414.54,0.00020273,2]
[315430345,1709029845494,-622.72185079,0.00020273,2]
[315430346,1709029845503,-3051.96,0.00020273,2]
[315430347,1709029845512,-260.25765248,0.00020273,2]
[315430348,1709029845521,-17947.83,0.00020273,2]
[315430349,1709029845530,-1302.63,0.00020273,2]
[315430350,1709029845539,-3826.56,0.00020273,2]
[315430351,1709029845548,-868.04,0.00020273,2]
[315430352,1709029845557,-500.0,0.00020273,2]
[315430353,1709029845566,-3097.32,0.00020273,2]
[315430354,1709029845575,-2279.01,0.00020273,2]
[315430355,1709029845584,-728.61,0.00020273,2]
[315430356,1709029845593,-500.0,0.00020273,2]
[315430357,1709029845602,-1677.26,0.00020273,2]
[315430358,1709029845611,-1097.39,0.00020273,2]
[315430359,1709029845621,-696.69,0.00020273,2]
[315430360,1709029845630,-200.6117409,0.00020288,2]
[315430361,1709029845639,-200.6117409,0.00020288,2]
[315430362,1709029845648,-200.6117409,0.00020288,2]
[315430363,1709029845657,-200.6117409,0.00020288,2]
[315430364,1709029845666,-200.6117409,0.00020288,2]
[315430365,1709029845676,-200.6117409,0.00020288,2]
[315430366,1709029845685,-200.6117409,0.00020288,2]
[315430368,1709029845694,-200.6117409,0.00020288,2]
[315430369,1709029845705,-200.6117409,0.00020288,2]
[315430370,1709029845715,-200.6117409,0.00020288,2]
[315430372,1709029845724,-200.6117409,0.00020288,2]
[315430374,1709029845733,-200.6117409,0.00020288,2]
[315430378,1709029845818,-500.0,0.00020358,2]
[315430379,1709029845829,-96072.54768136,0.00020373,2]
[315430381,1709029845838,-959.01542021,0.00020437,2]
[315430382,1709029845848,-500.0,0.00020473,2]
[315430384,1709029845858,-166.666666,0.00020524,2]
[315430386,1709029845867,-50000.0,0.00020537,4]
[315430387,1709029845876,-1804.65855243,0.00020537,4]
[315430388,1709029845899,-5062.58192654,0.00020537,4]
[315430389,1709029846075,-1536.44373481,0.00019696,2]
[315430390,1709029846084,-1536.44373481,0.00019868,2]
[315430391,1709029846093,-53649.69730038,0.00020537,4]
[315430392,1709029846104,-264.89267456,0.00020537,4]
[315430393,1709029846116,-781.20470754,0.00020537,4]
[315430394,1709029846168,-11340.10729231,0.00020537,4]
[315430395,1709029846192,-3845.37356102,0.00020537,4]
[315430396,1709029871680,2973.983076,0.00021,30]
[315430419,1709030998138,1186.2614269,0.0001808,2]
[315430456,1709031036148,-183.171319,0.00018116,2]
[315430458,1709031036158,-592.46019968,0.00018136,2]
[315430460,1709031036167,-669.22434158,0.000189,2]
[315430462,1709031036177,-462.78692368,0.00019032,2]
[315430467,1709031036214,-496.22849653,0.00019032,2]
[315430470,1709031036223,-170.39797678,0.00019032,2]
[315430473,1709031036235,-500.0,0.00019077,2]
[315430475,1709031036246,-66255.40920006,0.00019078,2]
[315430640,1709031038076,-2120.88608694,0.00019078,2]
[315430643,1709031038089,-2016.68491603,0.00019078,2]
[315430645,1709031038101,-5278.70806286,0.00019078,2]
[315430649,1709031038130,-4249.38420413,0.00019078,2]
[315430651,1709031038142,-196078.92752998,0.00019078,2]
[315430653,1709031038151,-500.0,0.00019132,2]
[315430655,1709031038160,-496.66696298,0.00019178,2]
[315430657,1709031038170,-500.0,0.00019178,2]
[315430659,1709031038179,-500.0,0.00019178,2]
[315430662,1709031038189,-500.0,0.00019178,2]
[315430663,1709031038198,-500.0,0.00019178,2]
[315430666,1709031038207,-509.88522936,0.00019178,2]
[315430667,1709031038217,-809.97,0.00019178,2]
[315430669,1709031038226,-1268.67,0.00019178,2]
[315430672,1709031038237,-500.0,0.00019178,2]
[315430673,1709031038248,-520.49261535,0.00019178,2]
[315430675,1709031038258,-500.0,0.00019178,2]
[315430677,1709031038267,-500.0,0.00019178,2]
[315430679,1709031038277,-506.51167982,0.00019178,2]
[315430682,1709031038288,-500.0,0.00019178,2]
[315430684,1709031038298,-500.0,0.00019178,2]
[315430686,1709031038307,-500.84804991,0.00019178,2]
[315430688,1709031038316,-500.65277545,0.00019178,2]
[315430690,1709031038326,-500.0,0.00019178,2]
[315430692,1709031038335,-618.23,0.00019178,2]
[315430694,1709031038344,-500.0,0.00019178,2]
[315430696,1709031038353,-625.25473972,0.00019178,2]
[315430698,1709031038362,-500.0,0.00019178,2]
[315430699,1709031038371,-500.0,0.00019178,2]
[315430701,1709031038381,-500.0,0.00019178,2]
[315430703,1709031038390,-500.11571016,0.00019178,2]
[315430718,1709031038513,-500.0,0.00019178,2]
[315430720,1709031038523,-500.0,0.00019178,2]
[315430722,1709031038532,-500.0,0.00019178,2]
[315430724,1709031038541,-500.0,0.00019178,2]
[315430726,1709031038550,-500.0,0.00019178,2]
[315430728,1709031038559,-310.0,0.00019178,2]
[315430730,1709031038569,-500.0,0.00019178,2]
[315430732,1709031038578,-500.0,0.00019178,2]
[315430734,1709031038587,-500.0,0.00019178,2]
[315430736,1709031038596,-500.0,0.00019178,2]
[315430738,1709031038605,-500.0,0.00019178,2]
[315430740,1709031038614,-500.0,0.00019178,2]
[315430742,1709031038623,-500.0,0.00019178,2]
[315430744,1709031038632,-500.0,0.00019178,2]
[315430746,1709031038642,-749.07,0.00019178,2]
[315430748,1709031038651,-500.0,0.00019178,2]
[315430750,1709031038661,-500.0,0.00019178,2]
[315430752,1709031038671,-502.22775455,0.00019178,2]
[315430754,1709031038680,-500.0,0.00019178,2]
[315430756,1709031038689,-500.0,0.00019178,2]
[315430759,1709031038700,-500.0,0.00019178,2]
[315430761,1709031038709,-500.0,0.00019178,2]
[315430763,1709031038718,-501.62472493,0.00019178,2]
[315430765,1709031038727,-500.0,0.00019178,2]
[315430767,1709031038737,-500.0,0.00019178,2]
[315430768,1709031038746,-211.14111785,0.00019178,2]
[315430770,1709031038755,-500.0,0.00019178,2]
[315430773,1709031038765,-500.0,0.00019178,2]
[315430775,1709031038774,-500.0,0.00019178,2]
[315430777,1709031038784,-500.0,0.00019178,2]
[315430778,1709031038792,-500.0,0.00019178,2]
[315430781,1709031038802,-500.0,0.00019178,2]
[315430783,1709031038811,-500.0,0.00019178,2]
[315430785,1709031038821,-500.0,0.00019178,2]
[315430787,1709031038830,-500.0,0.00019178,2]
[315430788,1709031038839,-500.0,0.00019178,2]
[315430791,1709031038849,-501.98121851,0.00019178,2]
[315430793,1709031038858,-500.0,0.00019178,2]
[315430795,1709031038868,-583.2051723,0.00019178,2]
[315430797,1709031038878,-500.0,0.00019178,2]
[315430798,1709031038887,-334.88546012,0.00019178,2]
[315430800,1709031038896,-502.13809935,0.00019178,2]
[315430802,1709031038906,-401.70891154,0.00019178,2]
[315430804,1709031038915,-500.47393803,0.00019178,2]
[315430807,1709031038925,-162.83762222,0.00019178,2]
[315430809,1709031038934,-500.0,0.00019178,2]
[315430811,1709031038946,-500.0,0.00019178,2]
[315430812,1709031038956,-500.0,0.00019178,2]
[315430815,1709031038965,-500.0,0.00019178,2]
[315430816,1709031038974,-236.25628183,0.00019178,2]
[315430819,1709031038985,-500.0,0.00019178,2]
[315430820,1709031038994,-500.0,0.00019178,2]
[315430822,1709031039007,-500.0,0.00019178,2]
[315430825,1709031039017,-500.0,0.00019178,2]
[315430827,1709031039027,-1271.86,0.00019178,2]
[315430829,1709031039036,-500.0,0.00019178,2]
[315430830,1709031039045,-500.0,0.00019178,2]
[315430832,1709031039055,-500.0,0.00019178,2]
[315430834,1709031039065,-500.0,0.00019178,2]
[315430836,1709031039075,-500.0,0.00019178,2]
[315430838,1709031039085,-500.0,0.00019178,2]
[315430841,1709031039095,-593.2402925,0.00019178,2]
[315430843,1709031039104,-500.0,0.00019178,2]
[315430845,1709031039117,-500.0,0.00019178,2]
[315430847,1709031039126,-374.99373444,0.00019178,2]
[315430849,1709031039134,-155.0,0.00019178,2]
[315430851,1709031039143,-500.0,0.00019178,2]
[315430852,1709031039153,-500.0,0.00019178,2]
[315430854,1709031039162,-500.80286778,0.00019178,2]
[315430857,1709031039172,-500.0,0.00019178,2]
[315430859,1709031039181,-500.0,0.00019178,2]
[315430861,1709031039191,-500.0,0.00019178,2]
[315430863,1709031039199,-164.67083156,0.00019178,2]
[315430865,1709031039209,-500.0,0.00019178,2]
[315430867,1709031039219,-500.0,0.00019178,2]
[315430869,1709031039228,-500.0,0.00019178,2]
[315430871,1709031039240,-500.0,0.00019178,2]
[315430872,1709031039251,-500.0,0.00019178,2]
[315430874,1709031039261,-500.0,0.00019178,2]
[315430877,1709031039270,-500.0,0.00019178,2]
[315430879,1709031039282,-451.77238634,0.00019178,2]
[315430881,1709031039294,-500.0,0.00019178,2]
[315430883,1709031039303,-500.0,0.00019178,2]
[315430884,1709031039312,-500.0,0.00019178,2]
[315430887,1709031039322,-500.0,0.00019178,2]
[315430889,1709031039332,-500.0,0.00019178,2]
[315430891,1709031039342,-1536.97,0.00019178,2]
[315430893,1709031039351,-500.0,0.00019178,2]
[315430895,1709031039361,-500.0,0.00019178,2]
[315430897,1709031039378,-500.0,0.00019178,2]
[315430900,1709031039392,-500.0,0.00019178,2]
[315430902,1709031039402,-500.0,0.00019178,2]
[315430904,1709031039412,-632.27431855,0.00019178,2]
[315430906,1709031039421,-500.0,0.00019178,2]
[315430908,1709031039431,-1519.07,0.00019178,2]
[315430910,1709031039441,-501.95643743,0.00019178,2]
[315430912,1709031039450,-1414.54,0.00019178,2]
[315430914,1709031039460,-500.0,0.00019178,2]
[315430916,1709031039470,-500.0,0.00019178,2]
[315430918,1709031039482,-500.18571217,0.00019178,2]
[315430920,1709031039492,-500.0,0.00019178,2]
[315430922,1709031039502,-696.69,0.00019178,2]
[315430924,1709031039512,-500.20544472,0.00019178,2]
[315430926,1709031039521,-501.378692,0.00019178,2]
[315430928,1709031039531,-500.0,0.00019178,2]
[315430930,1709031039541,-500.0,0.00019178,2]
[315430932,1709031039550,-500.0,0.00019178,2]
[315430934,1709031039560,-500.0,0.00019178,2]
[315430936,1709031039569,-500.0,0.00019178,2]
[315430938,1709031039579,-500.0,0.00019178,2]
[315430941,1709031039589,-500.0,0.00019178,2]
[315430943,1709031039599,-500.0,0.00019178,2]
[315430945,1709031039608,-560.08,0.00019178,2]
[315430947,1709031039624,-712.06,0.00019178,2]
[315430950,1709031039641,-500.0,0.00019178,2]
[315430953,1709031039655,-907.1,0.00019178,2]
[315430955,1709031039669,-500.0,0.00019178,2]
[315430958,1709031039684,-500.0,0.00019178,2]
[315430960,1709031039697,-501.22080587,0.00019178,2]
[315430962,1709031039708,-500.0,0.00019178,2]
[315430965,1709031039722,-728.61,0.00019178,2]
[315430967,1709031039738,-500.0,0.00019178,2]
[315430969,1709031039752,-501.22858911,0.00019178,2]
[315430972,1709031039765,-1145.82,0.00019178,2]
[315430974,1709031039779,-500.96626582,0.00019178,2]
[315430977,1709031039797,-500.0,0.00019178,2]
[315430979,1709031039811,-500.0,0.00019178,2]
[315430982,1709031039825,-241.83685928,0.00019178,2]
[315430984,1709031039838,-2482.48,0.00019178,2]
[315430986,1709031039850,-500.0,0.00019178,2]
[315430988,1709031039862,-500.0,0.00019178,2]
[315430990,1709031039875,-767.04,0.00019178,2]
[315430993,1709031039887,-500.0,0.00019178,2]
[315430995,1709031039901,-500.0,0.00019178,2]
[315430997,1709031039915,-500.0,0.00019178,2]
[315431000,1709031039927,-500.0,0.00019178,2]
[315431002,1709031039939,-1907.83,0.00019178,2]
[315431004,1709031039952,-500.27404044,0.00019178,2]
[315431007,1709031039966,-1799.8,0.00019178,2]
[315431009,1709031039977,-500.48331824,0.00019178,2]
[315431011,1709031039990,-500.0,0.00019178,2]
[315431013,1709031040001,-503.20835864,0.00019178,2]
[315431016,1709031040016,-500.0,0.00019178,2]
[315431018,1709031040027,-500.0,0.00019178,2]
[315431020,1709031040040,-598.39,0.00019178,2]
[315431023,1709031040053,-509.27132953,0.00019178,2]
[315431025,1709031040066,-500.0,0.00019178,2]
[315431027,1709031040077,-500.0,0.00019178,2]
[315431029,1709031040090,-500.0,0.00019178,2]
[315431032,1709031040104,-500.0,0.00019178,2]
[315431034,1709031040115,-500.0,0.00019178,2]
[315431036,1709031040128,-1946.01,0.00019178,2]
[315431040,1709031040141,-1862.12,0.00019178,2]
[315431042,1709031040153,-500.0,0.00019178,2]
[315431045,1709031040166,-507.42166358,0.00019178,2]
[315431047,1709031040179,-500.0,0.00019178,2]
[315431049,1709031040192,-643.32,0.00019178,2]
[315431052,1709031040205,-500.67580525,0.00019178,2]
[315431055,1709031040216,-10079.62,0.00019178,2]
[315431059,1709031040227,-544.99348939,0.00019178,2]
[315431063,1709031040239,-500.0,0.00019178,2]
[315431066,1709031040253,-549.59387891,0.00019178,2]
[315431069,1709031040265,-500.0,0.00019178,2]
[315431073,1709031040277,-500.0,0.00019178,2]
[315431076,1709031040291,-443.10422866,0.00019178,2]
[315431079,1709031040303,-502.22643844,0.00019178,2]
[315431083,1709031040314,-500.0,0.00019178,2]
[315431087,1709031040327,-559.21,0.00019178,2]
[315431090,1709031040338,-500.0,0.00019178,2]
[315431093,1709031040348,-500.0,0.00019178,2]
[315431096,1709031040359,-4134.42,0.00019178,2]
[315431100,1709031040370,-500.0,0.00019178,2]
[315431104,1709031040381,-500.0,0.00019178,2]
[315431107,1709031040391,-500.0,0.00019178,2]
[315431110,1709031040403,-500.0,0.00019178,2]
[315431113,1709031040414,-19597.57,0.00019178,2]
[315431117,1709031040425,-500.0,0.00019178,2]
[315431121,1709031040436,-500.0,0.00019178,2]
[315431124,1709031040448,-500.0,0.00019178,2]
[315431127,1709031040460,-500.0,0.00019178,2]
[315431130,1709031040471,-500.0,0.00019178,2]
[315431135,1709031040485,-500.0,0.00019178,2]